fUSD/lending_fUSD_20251117
["ID","MTS","AMOUNT","RATE_DAILY","PERIOD"]
[394224777,1763394642516,-500.0,0.00038198,2]
[394224779,1763394642525,-500.0,0.00038198,2]
[394224781,1763394642535,-331.58132116,0.00038204,2]
[394224784,1763394642545,-601.26,0.00038299,14]
[394224786,1763394642555,-924.36,0.00038311,2]
[394224788,1763394642564,-206.83763482,0.00038322,2]
[394224789,1763394642574,-2000.0,0.00038356,120]
[394224791,1763394642583,-151.0,0.00038356,120]
[394224794,1763394642596,-151.0,0.00038356,120]
[394224796,1763394642606,-500.0,0.00038356,30]
[394224798,1763394642615,-663.0,0.00038357,2]
[394224799,1763394642624,-150.0,0.00038387,7]
[394224801,1763394642634,-150.0,0.00038387,7]
[394224803,1763394642643,-200.0,0.00038406,2]
[394224805,1763394642652,-707.0,0.0003841,2]
[394224808,1763394642662,-150.0,0.0003845,7]
[394224810,1763394642672,-150.0,0.0003845,7]
[394224811,1763394642681,-601.51451353,0.00038472,2]
[394224814,1763394642691,-500.0,0.00038472,2]
[394224816,1763394642700,-2165.28254082,0.00038483,2]
[394224817,1763394642711,-663.0,0.00038501,7]
[394224819,1763394642723,-1000.0,0.00038521,5]
[394224821,1763394642733,-500.97676262,0.00038521,5]
[394224823,1763394642743,-150.0,0.00038567,7]
[394224826,1763394642753,-601.26,0.00038573,30]
[394224828,1763394642765,-700.39,0.00038575,2]
[394224830,1763394642776,-700.39,0.00038575,2]
[394224832,1763394642790,-319.96,0.00038575,2]
[394224834,1763394642800,-663.0,0.00038582,2]
[394224835,1763394642810,-6788.0,0.0003862,5]
[394224837,1763394642819,-332.71817179,0.00038621,5]
[394224839,1763394642830,-803.68058232,0.00038621,5]
[394224842,1763394642843,-502.22144577,0.00038621,5]
[394224844,1763394642853,-502.20352986,0.00038621,5]
[394224845,1763394642863,-1000.0,0.00038621,5]
[394224847,1763394642873,-1002.41579198,0.00038621,5]
[394224849,1763394642882,-1000.0,0.00038621,5]
[394224852,1763394642892,-1000.0,0.00038621,5]
[394224853,1763394642901,-943.44977622,0.00038621,5]
[394224856,1763394642911,-500.0,0.0003863,30]
[394224857,1763394642921,-150.0,0.00038632,7]
[394224860,1763394642930,-5541.0,0.000387,117]
[394224862,1763394642941,-150.0,0.00038702,7]
[394224863,1763394642950,-150.0,0.00038702,7]
[394224866,1763394642960,-171.25727492,0.00038707,15]
[394224867,1763394642970,-1333.33,0.0003872,2]
[394224869,1763394642979,-500.0,0.00038746,2]
[394224871,1763394642990,-166.66,0.00038754,30]
[394224874,1763394643000,-663.0,0.00038756,2]
[394224875,1763394643010,-200.0,0.0003879,2]
[394224877,1763394643020,-1471.52287929,0.000388,30]
[394224879,1763394643030,-2165.28254082,0.00038817,2]
[394224881,1763394643040,-206.83763482,0.00038828,2]
[394224883,1763394643049,-706.0,0.00038845,7]
[394224886,1763394643058,-601.26,0.00038847,30]
[394224888,1763394643068,-150.0,0.00038859,7]
[394224890,1763394643077,-150.0,0.00038859,7]
[394224891,1763394643086,-3852.2043,0.00038888,30]
[394224894,1763394643102,-2000.0,0.00038904,120]
[394224895,1763394643111,-500.0,0.00038904,30]
[394224898,1763394643120,-200.0,0.00038933,2]
[394224899,1763394643130,-152.55346981,0.00038959,30]
[394224901,1763394643139,-161.8492894,0.00038959,30]
[394224903,1763394643148,-169.45,0.00038986,2]
[394224905,1763394643158,-150.0,0.00038986,2]
[394224907,1763394643168,-177.35,0.00038986,2]
[394224909,1763394643178,-150.0,0.00038986,2]
[394224912,1763394643187,-416.78,0.00038986,2]
[394224914,1763394643199,-177.35,0.00038986,2]
[394224916,1763394643212,-169.45,0.00038986,2]
[394224917,1763394643222,-169.45,0.00038986,2]
[394224919,1763394643232,-177.35,0.00038986,2]
[394224922,1763394643242,-150.0,0.00038986,2]
[394224924,1763394643252,-150.0,0.00038986,2]
[394224926,1763394643261,-169.45,0.00038986,2]
[394224928,1763394643272,-177.35,0.00038986,2]
[394224929,1763394643282,-177.35,0.00038986,2]
[394224931,1763394643293,-150.0,0.00038986,2]
[394224934,1763394643303,-169.45,0.00038986,2]
[394224935,1763394643313,-369.99,0.00038986,2]
[394224938,1763394643322,-416.78,0.00038986,2]
[394224940,1763394643332,-150.0,0.00038986,2]
[394224941,1763394643347,-416.78,0.00038986,2]
[394224943,1763394643356,-150.0,0.00038986,2]
[394224945,1763394643365,-150.0,0.00038986,2]
[394224947,1763394643374,-416.15,0.00038986,2]
[394224949,1763394643384,-150.0,0.00038986,2]
[394224951,1763394643394,-150.0,0.00038986,2]
[394224954,1763394643403,-150.0,0.00038986,2]
[394224955,1763394643413,-175.95,0.00038986,2]
[394224957,1763394643422,-150.0,0.00038986,2]
[394224959,1763394643433,-150.0,0.00039016,7]
[394224962,1763394643443,-150.0,0.00039016,7]
[394224964,1763394643452,-500.0,0.0003902,2]
[394224966,1763394643461,-531.9504323,0.00039034,120]
[394224968,1763394643470,-150.0,0.00039086,7]
[394224970,1763394643480,-601.26,0.00039121,30]
[394224972,1763394643489,-663.0,0.00039141,2]
[394224974,1763394643499,-2165.28254082,0.00039151,2]
[394224976,1763394643508,-150.0,0.00039151,7]
[394224978,1763394643518,-1000.0,0.00039168,5]
[394224980,1763394643528,-500.0,0.00039168,5]
[394224982,1763394643538,-200.0,0.00039178,2]
[394224984,1763394643548,-500.0,0.00039178,30]
[394224986,1763394643558,-152.55346981,0.00039205,30]
[394224988,1763394643568,-663.0,0.00039214,2]
[394224990,1763394643578,-161.8492894,0.0003926,30]
[394224992,1763394643588,-150.0,0.00039268,7]
[394224994,1763394643601,-150.0,0.00039268,7]
[394224996,1763394643610,-663.0,0.00039287,120]
[394224998,1763394643619,-188.12379968,0.00039289,120]
[394225000,1763394643629,-500.0,0.00039294,2]
[394225002,1763394643638,-150.0,0.00039331,7]
[394225004,1763394643649,-150.0,0.00039331,7]
[394225006,1763394643659,-206.83763482,0.00039335,2]
[394225008,1763394643668,-244.17,0.00039367,14]
[394225010,1763394643678,-601.3,0.00039395,30]
[394225012,1763394643687,-706.0,0.00039423,120]
[394225014,1763394643698,-1333.33,0.0003944,2]
[394225016,1763394643707,-2000.0,0.00039452,120]
[394225018,1763394643718,-500.0,0.00039452,30]
[394225020,1763394643727,-152.55346981,0.00039452,30]
[394225022,1763394643736,-2165.28254082,0.00039484,2]
[394225024,1763394643746,-161.8492894,0.00039534,30]
[394225026,1763394643755,-150.0,0.00039541,7]
[394225028,1763394643766,-150.0,0.00039541,7]
[394225030,1763394643775,-150.0,0.00039541,7]
[394225032,1763394643785,-500.0,0.00039568,2]
[394225034,1763394643794,-171.25727492,0.00039591,15]
[394225036,1763394643805,-150.0,0.00039646,7]
[394225038,1763394643814,-150.0,0.00039646,7]
[394225040,1763394643823,-235.59,0.00039654,2]
[394225041,1763394643832,-900.0,0.0003966,2]
[394225042,1763394643842,-900.0,0.0003966,2]
[394225043,1763394643851,-900.0,0.0003966,2]
[394225044,1763394643862,-900.0,0.0003966,2]
[394225045,1763394643871,-500.0,0.00039695,30]
[394225046,1763394643880,-924.36,0.00039696,2]
[394225047,1763394643889,-152.55346981,0.00039699,30]
[394225049,1763394643898,-500.0,0.00039726,30]
[394225050,1763394643907,-150.0,0.00039735,7]
[394225052,1763394643916,-3870.62961687,0.00039748,2]
[394225054,1763394643925,-900.0,0.0003976,2]
[394225056,1763394643935,-900.0,0.0003976,2]
[394225058,1763394643944,-1000.0,0.00039773,90]
[394225061,1763394643954,-663.0,0.00039786,7]
[394225062,1763394643964,-2165.28254082,0.00039818,2]
[394225065,1763394643973,-663.0,0.00039827,120]
[394225067,1763394643983,-154.5625251,0.00039836,30]
[394225069,1763394643992,-161.8492894,0.00039836,30]
[394225071,1763394644001,-500.0,0.00039842,2]
[394225072,1763394644010,-663.0,0.00039852,2]
[394225073,1763394644019,-150.0,0.00039882,7]
[394225075,1763394644030,-156.1794009,0.0003989,2]
[394225077,1763394644040,-663.0,0.0003989,120]
[394225079,1763394644049,-1203.2381,0.000399,2]
[394225081,1763394644058,-151.0,0.00039918,7]
[394225083,1763394644067,-152.55346981,0.00039945,30]
[394225085,1763394644076,-527.247811,0.00039954,120]
[394225087,1763394644086,-1000.0,0.0003996,30]
[394225089,1763394644098,-420.179,0.0003996,30]
[394225090,1763394644107,-150.0,0.0003996,7]
[394225092,1763394644117,-150.0,0.0003996,7]
[394225094,1763394644126,-500.0,0.00039973,5]
[394225096,1763394644137,-500.0,0.00039973,5]
[394225098,1763394644146,-500.0,0.00039973,5]
[394225100,1763394644155,-500.0,0.00039973,5]
[394225102,1763394644165,-500.0,0.00039973,5]
[394225104,1763394644174,-500.0,0.00039973,5]
[394225106,1763394644183,-607.52246125,0.00039973,5]
[394225108,1763394644192,-150.0,0.00039995,7]
[394225110,1763394644201,-151.0,0.00039997,14]
[394225112,1763394644210,-886.16,0.00039997,5]
[394225114,1763394644219,-539.29737387,0.00039999,30]
[394225116,1763394644229,-50000.0,0.0004,40]
[394225118,1763394644237,-500.0,0.0004,30]
[394225119,1763394644247,-103676.733891,0.0004,120]
[394225120,1763394644257,-161.44008381,0.0004,30]
[394225121,1763394644267,-200.0,0.0004,30]
[394225122,1763394644280,-2000.0,0.0004,120]
[394225123,1763394644290,-151.0,0.0004,120]
[394225124,1763394644299,-151.0,0.0004,120]
[394225125,1763394644308,-151.0,0.0004,120]
[394225126,1763394644317,-151.0,0.0004,120]
[394225127,1763394644326,-151.0,0.0004,120]
[394225128,1763394644335,-151.0,0.0004,120]
[394225129,1763394644346,-206.757626,0.0004,120]
[394225130,1763394644356,-151.0,0.0004,120]
[394225132,1763394644365,-151.0,0.0004,120]
[394225134,1763394644375,-151.0,0.0004,120]
[394225136,1763394644384,-151.0,0.0004,120]
[394225137,1763394644393,-151.0,0.0004,120]
[394225139,1763394644402,-151.0,0.0004,120]
[394225141,1763394644411,-242.358057,0.0004,120]
[394225142,1763394644420,-209.459822,0.0004,120]
[394225143,1763394644431,-209.459822,0.0004,120]
[394225144,1763394644441,-209.459822,0.0004,120]
[394225145,1763394644450,-209.459822,0.0004,120]
[394225146,1763394644459,-151.0,0.0004,120]
[394225147,1763394644468,-151.0,0.0004,120]
[394225148,1763394644478,-151.0,0.0004,120]
[394225149,1763394644487,-151.0,0.0004,120]
[394225150,1763394644497,-151.0,0.0004,120]
[394225151,1763394644507,-151.0,0.0004,120]
[394225152,1763394644516,-151.0,0.0004,120]
[394225153,1763394644525,-151.0,0.0004,120]
[394225154,1763394644535,-177.446999,0.0004,120]
[394225155,1763394644544,-151.0,0.0004,120]
[394225156,1763394644554,-151.0,0.0004,15]
[394225157,1763394644563,-151.0,0.0004,120]
[394225158,1763394644573,-196.435603,0.0004,120]
[394225159,1763394644582,-151.0,0.0004,120]
[394225160,1763394644592,-151.0,0.0004,120]
[394225161,1763394644601,-209.155117,0.0004,120]
[394225162,1763394644611,-209.155117,0.0004,120]
[394225163,1763394644620,-209.155117,0.0004,120]
[394225164,1763394644630,-209.155117,0.0004,120]
[394225165,1763394644639,-151.0,0.0004,120]
[394225166,1763394644649,-151.0,0.0004,120]
[394225167,1763394644658,-151.0,0.0004,120]
[394225168,1763394644668,-151.0,0.0004,120]
[394225169,1763394644677,-151.0,0.0004,120]
[394225170,1763394644687,-151.0,0.0004,120]
[394225171,1763394644696,-281.45964,0.0004,120]
[394225172,1763394644705,-151.0,0.0004,120]
[394225173,1763394644720,-151.0,0.0004,120]
[394225175,1763394644730,-194.0,0.0004,2]
[394225176,1763394644740,-151.0,0.0004,28]
[394225178,1763394644749,-184.715224,0.0004,28]
[394225180,1763394644759,-432.766148,0.0004,120]
[394225182,1763394644768,-151.0,0.0004,90]
[394225184,1763394644777,-432.766148,0.0004,120]
[394225186,1763394644788,-151.0,0.0004,120]
[394225188,1763394644797,-432.766148,0.0004,120]
[394225190,1763394644807,-432.766148,0.0004,120]
[394225192,1763394644818,-151.0,0.0004,120]
[394225194,1763394644827,-151.0,0.0004,120]
[394225196,1763394644837,-212.502162,0.0004,120]
[394225198,1763394644852,-151.0,0.0004,120]
[394225200,1763394644864,-151.0,0.0004,120]
[394225202,1763394644873,-151.0,0.0004,120]
[394225204,1763394644884,-151.0,0.0004,120]
[394225206,1763394644895,-366.390903,0.0004,120]
[394225208,1763394644905,-151.0,0.0004,120]
[394225210,1763394644916,-366.390903,0.0004,120]
[394225212,1763394644925,-366.390903,0.0004,120]
[394225214,1763394644935,-151.0,0.0004,120]
[394225216,1763394644945,-366.390903,0.0004,120]
[394225218,1763394644955,-151.0,0.0004,120]
[394225220,1763394644966,-153.782234,0.0004,120]
[394225222,1763394644976,-151.0,0.0004,120]
[394225224,1763394644985,-151.0,0.0004,120]
[394225226,1763394644995,-302.265355,0.0004,120]
[394225228,1763394645004,-302.265355,0.0004,120]
[394225230,1763394645014,-249.753909,0.0004,120]
[394225232,1763394645024,-268.869614,0.0004,120]
[394225234,1763394645033,-302.265355,0.0004,120]
[394225236,1763394645043,-268.869614,0.0004,120]
[394225237,1763394645052,-302.265355,0.0004,120]
[394225238,1763394645061,-268.869614,0.0004,120]
[394225239,1763394645072,-268.869614,0.0004,120]
[394225240,1763394645085,-151.0,0.0004,120]
[394225241,1763394645098,-151.0,0.0004,120]
[394225242,1763394645108,-812.819562,0.0004,120]
[394225243,1763394645117,-151.0,0.0004,120]
[394225244,1763394645127,-812.819562,0.0004,120]
[394225245,1763394645136,-151.0,0.0004,120]
[394225246,1763394645145,-812.819562,0.0004,120]
[394225247,1763394645154,-812.819562,0.0004,120]
[394225248,1763394645164,-241.147629,0.0004,120]
[394225249,1763394645174,-241.147629,0.0004,120]
[394225250,1763394645183,-241.147629,0.0004,120]
[394225251,1763394645192,-241.147629,0.0004,120]
[394225252,1763394645202,-396.100522,0.0004,120]
[394225253,1763394645211,-506.189451,0.0004,120]
[394225254,1763394645221,-396.100522,0.0004,120]
[394225255,1763394645230,-506.189451,0.0004,120]
[394225256,1763394645240,-396.100522,0.0004,120]
[394225257,1763394645250,-506.189451,0.0004,120]
[394225258,1763394645259,-396.100522,0.0004,120]
[394225259,1763394645268,-506.189451,0.0004,120]
[394225260,1763394645278,-266.812871,0.0004,120]
[394225261,1763394645287,-405.748691,0.0004,30]
[394225262,1763394645297,-405.748691,0.0004,30]
[394225263,1763394645306,-405.748691,0.0004,30]
[394225267,1763394645503,-405.748691,0.0004,30]
[394225268,1763394645514,-151.0,0.0004,120]
[394225269,1763394645524,-151.0,0.0004,120]
[394225270,1763394645533,-151.0,0.0004,120]
[394225271,1763394645545,-1073.862805,0.0004,120]
[394225272,1763394645554,-1073.862805,0.0004,120]
[394225273,1763394645566,-1073.862805,0.0004,120]
[394225274,1763394645576,-1073.862805,0.0004,120]
[394225275,1763394645586,-519.5,0.0004,120]
[394225276,1763394645597,-319.577146,0.0004,120]
[394225277,1763394645606,-319.577146,0.0004,120]
[394225278,1763394645616,-355.196496,0.0004,120]
[394225279,1763394645626,-319.577146,0.0004,120]
[394225280,1763394645635,-355.196496,0.0004,120]
[394225281,1763394645646,-319.577146,0.0004,120]
[394225282,1763394645655,-355.196496,0.0004,120]
[394225283,1763394645667,-355.196496,0.0004,120]
[394225284,1763394645676,-151.0,0.0004,120]
[394225285,1763394645685,-1352.32161,0.00040026,2]
[394225286,1763394645695,-900.0,0.0004006,2]
[394225287,1763394645704,-900.0,0.0004006,2]
[394225288,1763394645716,-900.0,0.0004006,2]
[394225289,1763394645727,-1040.75267728,0.0004006,2]
[394225290,1763394645736,-900.0,0.0004006,2]
[394225291,1763394645746,-900.0,0.0004006,2]
[394225292,1763394645756,-500.0,0.00040063,7]
[394225293,1763394645767,-500.0,0.00040063,7]
[394225294,1763394645777,-150.0,0.00040086,7]
[394225295,1763394645788,-150.0,0.00040086,7]
[394225296,1763394645800,-161.8492894,0.0004011,30]
[394225297,1763394645811,-500.0,0.00040116,2]
[394225298,1763394645820,-156.17940089,0.00040134,2]
[394225299,1763394645831,-1000.0,0.00040145,2]
[394225300,1763394645843,-2165.28254082,0.00040152,15]
[394225301,1763394645853,-900.0,0.0004016,2]
[394225302,1763394645864,-900.0,0.0004016,2]
[394225303,1763394645875,-706.0,0.00040184,2]
[394225304,1763394645884,-152.55346981,0.00040192,30]
[394225305,1763394645895,-161.38,0.00040217,2]
[394225306,1763394645904,-150.0,0.00040222,7]
[394225307,1763394645914,-1182.0,0.00040223,30]
[394225308,1763394645924,-500.0,0.00040274,30]
[394225309,1763394645933,-150.0,0.00040275,7]
[394225310,1763394645943,-150.0,0.00040275,7]
[394225311,1763394645953,-1400.0,0.000403,14]
[394225312,1763394645963,-150.0,0.0004032,7]
[394225313,1763394645973,-663.0,0.00040374,7]
[394225314,1763394645982,-156.17940089,0.00040378,2]
[394225315,1763394645992,-500.0,0.0004039,2]
[394225316,1763394646003,-200.0,0.000404,14]
[394225317,1763394646012,-161.8492894,0.00040411,30]
[394225318,1763394646022,-168.0,0.00040438,2]
[394225319,1763394646031,-152.55346981,0.00040438,30]
[394225320,1763394646042,-150.0,0.0004045,7]
[394225321,1763394646052,-900.0,0.0004046,2]
[394225322,1763394646061,-900.0,0.0004046,2]
[394225323,1763394646071,-171.25727492,0.00040476,15]
[394225324,1763394646081,-2165.28254082,0.00040486,15]
[394225325,1763394646092,-325.0,0.00040493,120]
[394225326,1763394646102,-200.0,0.000405,14]
[394225327,1763394646112,-154.74925089,0.0004051,35]
[394225328,1763394646121,-663.0,0.00040511,2]
[394225329,1763394646131,-432.78038,0.00040521,5]
[394225330,1763394646140,-953.8256405,0.00040521,5]
[394225331,1763394646150,-1000.0,0.00040521,5]
[394225332,1763394646160,-501.16937227,0.00040521,5]
[394225333,1763394646169,-506.20609274,0.00040521,5]
[394225334,1763394646179,-500.96125476,0.00040521,5]
[394225335,1763394646188,-2500.0,0.00040533,14]
[394225336,1763394646197,-151.0,0.00040538,14]
[394225337,1763394646207,-2500.0,0.00040541,14]
[394225338,1763394646217,-2500.0,0.00040541,14]
[394225339,1763394646226,-334.94896325,0.00040541,14]
[394225340,1763394646236,-2500.0,0.00040542,14]
[394225341,1763394646245,-2167.85886011,0.00040542,14]
[394225342,1763394646255,-529.09,0.00040548,30]
[394225343,1763394646264,-2000.0,0.00040548,120]
[394225344,1763394646274,-900.0,0.00040559,2]
[394225345,1763394646283,-900.0,0.00040559,2]
[394225346,1763394646292,-152.0,0.00040588,3]
[394225347,1763394646301,-150.0,0.00040589,7]
[394225348,1763394646311,-150.0,0.00040589,7]
[394225349,1763394646321,-151.0,0.00040597,14]
[394225350,1763394646330,-226183.65059825,0.000406,30]
[394225352,1763394646342,-200.0,0.000406,14]
[394225354,1763394646352,-156.17940089,0.00040622,2]
[394225356,1763394646361,-286.66,0.0004063,2]
[394225357,1763394646370,-150.0,0.0004063,2]
[394225359,1763394646380,-150.0,0.0004063,2]
[394225361,1763394646390,-150.0,0.0004063,2]
[394225364,1763394646399,-150.0,0.0004063,2]
[394225366,1763394646409,-150.0,0.0004063,2]
[394225368,1763394646418,-150.0,0.0004063,2]
[394225370,1763394646428,-150.0,0.0004063,2]
[394225371,1763394646437,-663.0,0.00040635,2]
[394225373,1763394646447,-1182.0,0.00040637,30]
[394225375,1763394646456,-900.0,0.00040659,2]
[394225377,1763394646465,-900.0,0.00040659,4]
[394225379,1763394646474,-900.0,0.00040659,2]
[394225380,1763394646484,-900.0,0.00040659,4]
[394225381,1763394646494,-500.0,0.00040664,2]
[394225382,1763394646504,-152.55346981,0.00040685,30]
[394225383,1763394646514,-161.8492894,0.00040685,30]
[394225384,1763394646523,-760.0485843,0.0004069,120]
[394225385,1763394646533,-200.0,0.000407,14]
[394225386,1763394646542,-900.0,0.00040759,2]
[394225388,1763394646555,-900.0,0.00040759,2]
[394225390,1763394646565,-1072.0,0.000408,14]
[394225392,1763394646575,-203.108012,0.000408,20]
[394225394,1763394646584,-2165.28254082,0.0004082,15]
[394225395,1763394646596,-221.39638379,0.0004082,2]
[394225396,1763394646605,-218.8096058,0.0004082,2]
[394225397,1763394646616,-151.43976195,0.0004082,8]
[394225398,1763394646625,-13359.78896165,0.0004082,2]
[394225399,1763394646634,-900.0,0.00040859,2]
[394225400,1763394646644,-900.0,0.00040859,2]
[394225401,1763394646654,-156.17940089,0.00040865,2]
[394225402,1763394646664,-150.0,0.00040891,2]
[394225403,1763394646676,-4573.90376554,0.00040891,2]
[394225404,1763394646686,-150.0,0.00040891,2]
[394225405,1763394646698,-454.95652901,0.00040891,2]
[394225406,1763394646709,-510.31958486,0.000409,30]
[394225407,1763394646721,-189.05531488,0.00040904,7]
[394225408,1763394646730,-294.19480338,0.00040904,7]
[394225409,1763394646739,-271.63412273,0.00040904,7]
[394225410,1763394646748,-167.2090159,0.00040904,7]
[394225411,1763394646759,-177.19318739,0.00040904,7]
[394225412,1763394646769,-150.0,0.00040904,7]
[394225413,1763394646778,-291.50683581,0.00040904,7]
[394225414,1763394646788,-168.66866561,0.00040904,7]
[394225415,1763394646799,-150.0,0.00040904,7]
[394225416,1763394646808,-248.34887386,0.00040904,7]
[394225417,1763394646817,-190.6592067,0.00040904,7]
[394225418,1763394646827,-201.56400329,0.00040904,7]
[394225419,1763394646837,-306.58693388,0.0004091,7]
[394225420,1763394646849,-151.0,0.00040917,14]
[394225421,1763394646858,-151.0,0.00040917,14]
[394225422,1763394646868,-151.0,0.00040917,14]
[394225423,1763394646878,-155.053873,0.00040917,14]
[394225424,1763394646888,-778846.35619758,0.0004092,120]
[394225425,1763394646898,-586281.67424461,0.0004092,120]
[394225426,1763394647252,-5861.0,0.0004092,120]
[394225427,1763394647264,-750.51407599,0.0004092,120]
[394225428,1763394647283,-73348.01469881,0.0004092,120]
[394225429,1763394647296,-2445.55591633,0.0004092,120]
[394225430,1763394647308,-1006.2910037,0.0004092,120]
[394225431,1763394647320,-5924.34735,0.0004092,120]
[394225432,1763394647333,-10155.6,0.0004092,120]
[394225433,1763394647344,-22818.0,0.0004092,120]
[394225434,1763394647355,-2149.884,0.0004092,120]
[394225435,1763394647431,-21762.41950126,0.0004092,120]
[394225436,1763394648214,-151.0,0.00038016,31]
[394225437,1763394648224,-151.0,0.00038016,31]
[394225438,1763394648233,-151.0,0.00038016,31]
[394225439,1763394648243,-151.0,0.00038016,31]
[394225440,1763394648253,-206.83763482,0.00039842,2]
[394225441,1763394648263,-151.0,0.0004,120]
[394225442,1763394648273,-151.0,0.0004,120]
[394225443,1763394648283,-948.9419739,0.0004092,120]
[394225444,1763394648294,-1759.23332722,0.0004092,120]
[394225445,1763394648351,-849.92660346,0.0004092,120]
[394225446,1763394648362,-276.99747719,0.0004092,120]
[394225447,1763394648374,-453442.37788343,0.0004092,120]
[394225448,1763394648385,-452.19087388,0.0004092,120]
[394225449,1763394649647,-151.0,0.00038016,31]
[394225450,1763394649657,-151.0,0.00038016,31]
[394225451,1763394649667,-151.0,0.00038016,31]
[394225452,1763394649677,-47.0,0.00038016,31]
[394225453,1763394649689,-111.256702,0.00038016,31]
[394225454,1763394649699,-151.0,0.00038016,31]
[394225455,1763394649709,-158.256702,0.00038016,31]
[394225456,1763394649724,-151.0,0.0004,120]
[394225457,1763394649734,-158.256702,0.0004,120]
[394225458,1763394649744,-9767.03107022,0.0004092,120]
[394225459,1763394649754,-290.335612,0.0004092,120]
[394225460,1763394649766,-151.0,0.0004092,120]
[394225461,1763394649776,-151.0,0.0004092,120]
[394225462,1763394649786,-157.608769,0.0004092,120]
[394225463,1763394649796,-151.0,0.0004092,120]
[394225464,1763394649807,-151.0,0.0004092,120]
[394225465,1763394649817,-151.0,0.0004092,120]
[394225466,1763394649828,-151.0,0.0004092,120]
[394225467,1763394649837,-151.0,0.0004092,120]
[394225468,1763394649848,-151.0,0.0004092,120]
[394225469,1763394649858,-209.459822,0.0004092,120]
[394225470,1763394649869,-209.459822,0.0004092,120]
[394225471,1763394649879,-209.459822,0.0004092,120]
[394225472,1763394649890,-209.459822,0.0004092,120]
[394225473,1763394649901,-209.459822,0.0004092,120]
[394225474,1763394649911,-209.459822,0.0004092,120]
[394225475,1763394649921,-209.459822,0.0004092,120]
[394225476,1763394649931,-209.459822,0.0004092,120]
[394225477,1763394649941,-151.097438,0.0004092,120]
[394225478,1763394649950,-151.0,0.0004092,120]
[394225479,1763394649960,-197.858445,0.0004092,120]
[394225480,1763394649970,-225.572255,0.0004092,120]
[394225481,1763394649980,-151.0,0.0004092,120]
[394225482,1763394649989,-151.0,0.0004092,120]
[394225483,1763394649999,-151.0,0.0004092,120]
[394225484,1763394650009,-151.0,0.0004092,120]
[394225485,1763394650019,-151.0,0.0004092,120]
[394225486,1763394650029,-151.0,0.0004092,120]
[394225487,1763394650039,-151.0,0.0004092,120]
[394225488,1763394650049,-294.734392,0.0004092,120]
[394225489,1763394650059,-24.31333651,0.0004092,15]
[394225490,1763394650090,-126.68666349,0.0004092,15]
[394225491,1763394650102,-151.0,0.0004092,120]
[394225492,1763394650112,-151.0,0.0004092,120]
[394225493,1763394650122,-151.0,0.0004092,120]
[394225494,1763394650132,-151.0,0.0004092,120]
[394225495,1763394650142,-151.0,0.0004092,120]
[394225496,1763394650153,-151.0,0.0004092,120]
[394225497,1763394650163,-209.155117,0.0004092,120]
[394225498,1763394650173,-209.155117,0.0004092,120]
[394225499,1763394650183,-209.155117,0.0004092,120]